bitfinex/quotes_ETHUSD_20250322
["timestamp","ask_amount","ask_price","bid_price","bid_amount"]
[1742674786678,7.99672182,2001.7,2001.3,9.6466]
[1742674786892,12.99260182,2001.7,2001.3,14.64326]
[1742674787639,10.45770653,2001.7,2001.3,14.64326]
[1742674788243,12.99260182,2001.7,2001.3,14.64326]
[1742674788421,12.99260182,2001.7,2001.3,9.6466]
[1742674788611,17.98855182,2001.7,2001.3,9.6466]
[1742674789338,5.46182653,2001.7,2001.4,4.99637]
[1742674790834,10.45757653,2001.7,2001.4,4.99637]
[1742674791647,10.45757653,2001.7,2001.3,9.64668]
[1742674792824,10.45757653,2001.7,2001.3,9.64659]
[1742674795558,5.46182653,2001.7,2001.4,4.99639]
[1742674795727,0.18372756,2001.6,2001.4,4.99639]
[1742674796756,0.18372756,2001.6,2001.3,9.64669]
[1742674797759,0.18372756,2001.6,2001.4,4.99645]
[1742674800246,0.18372756,2001.6,2001.3,9.64669]
[1742674800629,0.18372756,2001.6,2001.3,9.6466]
[1742674802361,5.17974756,2001.6,2001.3,9.6466]
[1742674802565,0.18372756,2001.6,2001.3,9.6466]
[1742674805159,0.18372756,2001.6,2001.3,9.64668]
[1742674805459,0.18372756,2001.6,2001.1,27.2156]
[1742674805696,5.79828,2001.5,2001.2,4.632]
[1742674807177,5.79828,2001.5,2001.2,9.62897]
[1742674808174,0.8019,2001.5,2001.2,12.16386529]
[1742674808471,0.8019,2001.5,2001.3,4.99666]
[1742674808878,0.8019,2001.5,2001.2,12.16380529]
[1742674809170,0.8019,2001.5,2001.2,9.62891]
[1742674809369,5.79817,2001.5,2001.2,9.62891]
[1742674811075,5.79817,2001.5,2001.2,4.632]
[1742674811442,5.79817,2001.5,2001.2,9.62896]
[1742674813785,0.8019,2001.5,2001.2,9.62896]
[1742674814683,0.18372756,2001.6,2001.3,4.99675]
[1742674814985,0.18372756,2001.6,2001.4,4.9965]
[1742674818282,0.18372756,2001.6,2001.4,9.99284]
[1742674818484,0.18372756,2001.6,2001.5,7.58110695]
[1742674818683,0.18372756,2001.6,2001.5,8.37120695]
[1742674818883,0.18372756,2001.6,2001.5,8.32124529]
[1742674819685,0.18372756,2001.6,2001.5,8.37120052]
[1742674819864,0.18372756,2001.6,2001.5,8.32124529]
[1742674820987,0.18372756,2001.6,2001.5,5.78635]
[1742674822993,0.18372756,2001.6,2001.5,8.32124529]
[1742674823164,0.18372756,2001.6,2001.5,8.37120061]
[1742674823364,0.18372756,2001.6,2001.5,8.32124529]
[1742674826195,0.18372756,2001.6,2001.5,5.78635]
[1742674826493,0.18372756,2001.6,2001.5,4.99625]
[1742674828595,0.18372756,2001.6,2001.5,7.58110234]
[1742674828895,0.18372756,2001.6,2001.5,8.36640234]
[1742674830694,0.96872756,2001.6,2001.4,31.41034]
[1742674830898,0.96872756,2001.6,2001.5,4.624]
[1742674831268,5.96472756,2001.6,2001.5,4.624]
[1742674833196,5.96472756,2001.6,2001.4,26.414]
[1742674833403,1.34953929,2001.5,2001.4,26.414]
[1742674833601,0.96872756,2001.6,2001.4,26.414]
[1742674834396,5.96487756,2001.6,2001.4,26.414]
[1742674834591,0.96872756,2001.6,2001.4,26.414]
[1742674837674,5.96484756,2001.6,2001.4,26.414]
[1742674838304,0.96872756,2001.6,2001.4,26.414]
[1742674839305,7.31426785,2001.6,2001.4,26.414]
[1742674840405,2.31821785,2001.6,2001.4,26.414]
[1742674840612,0.96872756,2001.6,2001.4,26.414]
[1742674843210,0.96872756,2001.6,2001.3,9.62364]
[1742674843423,0.96872756,2001.6,2001.4,4.99647]
[1742674843424,0.18372756,2001.6,2001.4,4.99647]
[1742674844003,0.18372756,2001.6,2001.4,4.9963]
[1742674849722,0.18372756,2001.6,2001.4,9.99269]
[1742674849903,0.18372756,2001.6,2001.4,4.9963]
[1742674851629,0.18372756,2001.6,2001.3,10.39147]
[1742674853229,0.18372756,2001.6,2001.3,15.38809]
[1742674853430,0.18372756,2001.6,2001.4,4.99634]
[1742674855428,0.18372756,2001.6,2001.3,10.39142]
[1742674855610,0.18372756,2001.6,2001.3,9.62362]
[1742674855805,0.7895,2001.5,2001.3,4.624]
[1742674857432,0.7895,2001.5,2001.3,9.62068]
[1742674858833,1.33438685,2001.6,2001.3,9.62068]
[1742674859600,0.7895,2001.5,2001.1,0.8411]
[1742674859800,0.7895,2001.5,2001.3,4.624]
[1742674860005,6.75134121,2001.5,2001.3,4.624]
[1742674865546,9.2862365,2001.5,2001.3,4.624]
[1742674865834,6.75134121,2001.5,2001.3,4.624]
[1742674868242,1.75499121,2001.5,2001.3,4.624]
[1742674868437,7.71475285,2001.6,2001.3,4.624]
[1742674869409,5.17985756,2001.6,2001.3,4.624]
[1742674869601,5.17985756,2001.6,2001.3,9.62073]
[1742674869602,0.18372756,2001.6,2001.3,9.62073]
[1742674869807,3.18372756,2001.6,2001.3,9.62073]
[1742674870328,8.17973756,2001.6,2001.3,9.62073]
[1742674870720,13.17598756,2001.6,2001.3,4.624]
[1742674870921,14.82489584,2001.6,2001.3,4.624]
[1742674871125,14.82479584,2001.6,2001.3,4.624]
[1742674872541,9.82864584,2001.6,2001.3,4.624]
[1742674872840,17.35973113,2001.6,2001.3,4.624]
[1742674873641,4.83263584,2001.6,2001.4,4.99625]
[1742674873846,3.18372756,2001.6,2001.3,9.62074]
[1742674874348,10.71466285,2001.6,2001.3,4.624]
[1742674875729,15.71084285,2001.6,2001.3,4.624]
[1742674876227,8.17976756,2001.6,2001.3,4.624]
[1742674877455,13.17595756,2001.6,2001.3,4.624]
[1742674878229,8.17976756,2001.6,2001.3,4.624]
[1742674880472,8.17976756,2001.6,2001.3,9.62074]
[1742674882284,8.17976756,2001.6,2001.3,4.624]
[1742674883137,4.99634,2001.5,2001.3,4.624]
[1742674885082,5.78214,2001.5,2001.3,4.624]
[1742674885897,0.34100273,2001.4,2001.3,4.624]
[1742674886594,5.33750273,2001.4,2001.3,4.624]
[1742674886980,5.33750273,2001.4,2001.1,31.42411]
[1742674887174,5.33750273,2001.4,2001.2,4.624]
[1742674887782,0.34100273,2001.4,2001.2,4.624]
[1742674892389,9.38099325,2001.4,2001.2,4.624]
[1742674892686,8.34464529,2001.3,2001.1,0.01]
[1742674892888,3.34789529,2001.2,2001.1,0.01]
[1742674893076,4.36731761,2001.2,2001.1,0.01]
[1742674894380,9.36431761,2001.2,2001.1,0.01]
[1742674905490,0.37163564,2001.3,2001.1,0.01]
[1742674905783,2.53489529,2001.3,2001.1,0.01]
[1742674906393,7.53175529,2001.3,2001.1,0.01]
[1742674906878,7.90366634,2001.3,2001.1,0.01]
[1742674907185,9.60920625,2001.3,2001.1,0.01]
[1742674911300,2.53489529,2001.2,2001.1,0.01]
[1742674912602,7.53189529,2001.2,2001.1,0.01]
[1742674915089,4.997,2001.2,2001.1,0.01]
[1742674915386,7.53189529,2001.2,2001.1,0.01]
[1742674916368,9.40801619,2001.2,2001.1,0.01]
[1742674916696,10.19291619,2001.2,2001.1,0.01]
[1742674925008,9.40801619,2001.2,2001.1,0.01]
[1742674933774,16.28471148,2001.2,2001.1,0.01]
[1742674934478,4.99891,2000.5,2000.2,0.8165]
[1742674934797,4.99891,2000.5,2000.2,10.43999]
[1742674934798,7.53380529,2000.5,2000.2,10.43999]
[1742674934998,7.53380529,2000.5,2000.2,15.43931]
[1742674934999,2.53489529,2000.5,2000.2,15.43931]
[1742674935202,2.53489529,2000.6,2000.2,5.4405]
[1742674935514,7.998,2000.8,2000.2,5.4405]
[1742674935515,2.53489529,2000.7,2000.5,5.81512]
[1742674935721,5.53489529,2000.8,2000.5,5.81512]
[1742674937601,3.0,2000.8,2000.5,5.81512]
[1742674937807,5.53489529,2000.8,2000.5,5.81512]
[1742674938011,5.53489529,2000.8,2000.5,5.81518]
[1742674939617,5.53489529,2000.9,2000.6,4.99846]
[1742674939779,5.53489529,2000.9,2000.7,4.99803]
[1742674939981,5.53489529,2000.9,2000.6,4.99845]
[1742674941522,2.53489529,2000.8,2000.5,5.81502]
[1742674944616,7.53294529,2000.8,2000.5,5.81502]
[1742674946223,2.53489529,2000.6,2000.5,4.625]
[1742674946729,7.53339529,2000.6,2000.5,4.625]
[1742674948226,7.53339529,2000.6,2000.4,26.425]
[1742674948430,8.30254529,2000.5,2000.4,26.425]
[1742674949825,8.85254529,2000.5,2000.4,26.425]
[1742674950103,4.9993,2000.3,2000.1,4.625]
[1742674950305,7.53419529,2000.3,2000.1,4.625]
[1742674951537,4.9993,2000.3,2000.1,4.625]
[1742674951835,2.53489529,2000.4,2000.1,9.62463]
[1742674952030,7.53399529,2000.4,2000.1,4.625]
[1742674952235,7.53399529,2000.4,2000.1,9.62471]
[1742674952756,2.53489529,2000.4,2000.1,9.62471]
[1742674954020,7.53397529,2000.4,2000.1,9.62471]
[1742674959872,2.53489529,2000.4,2000.1,9.62471]
[1742674961753,8.08366529,2000.5,2000.1,9.62459]
[1742674961965,9.50637468,2000.5,2000.1,9.62459]
[1742674962320,14.50529468,2000.5,2000.1,9.62459]
[1742674962727,14.50530468,2000.5,2000.1,9.62459]
[1742674963650,9.50637468,2000.5,2000.1,9.62459]
[1742674965760,3.95760468,2000.5,2000.1,4.625]
[1742674965949,7.99827,2000.7,2000.2,5.80202]
[1742674966129,2.53489529,2000.6,2000.3,4.99913]
[1742674969865,1.55308653,2000.8,2000.5,4.99863]
[1742674970072,3.0,2000.7,2000.5,4.99863]
[1742674970237,5.53489529,2000.7,2000.5,4.99863]
[1742674970432,6.74348047,2000.7,2000.5,4.99863]
[1742674972761,4.20858518,2000.7,2000.5,4.99863]
[1742674974976,6.74348047,2000.7,2000.5,4.99863]
[1742674975140,6.74348047,2000.7,2000.4,5.80159]
[1742674975973,0.33545469,2000.6,2000.4,5.80159]
[1742674981953,0.33545469,2000.6,2000.4,0.8026]
[1742674982979,2.53489529,2000.5,2000.2,32.21269]
[1742674983390,4.99878,2000.5,2000.2,32.21269]
[1742674983692,7.53367529,2000.5,2000.2,32.21269]
[1742674983859,7.53367529,2000.5,2000.3,4.625]
[1742674984183,7.53367529,2000.5,2000.2,32.21269]
[1742674984367,10.68043795,2000.6,2000.2,36.83755]
[1742674984565,2.31661266,2000.6,2000.3,4.99923]
[1742674986566,7.31511266,2000.6,2000.3,4.99923]
[1742674987289,7.31511266,2000.6,2000.2,36.83768]
[1742674987882,2.31661266,2000.6,2000.3,4.99912]
[1742674988558,2.31661266,2000.6,2000.3,4.99911]
[1742674989498,7.31520266,2000.6,2000.2,36.83767]
[1742674989902,9.85009795,2000.6,2000.2,36.83767]
[1742674991408,2.31661266,2000.6,2000.3,4.99914]
[1742674992594,0.33545469,2000.6,2000.5,4.99875]
[1742674992996,0.33545469,2000.6,2000.5,8.33114529]
[1742674997179,0.33545469,2000.6,2000.5,8.38111869]
[1742674999205,0.33545469,2000.6,2000.5,8.33114529]
[1742674999942,0.33545469,2000.6,2000.5,10.42025]
[1742675000232,0.33545469,2000.6,2000.5,12.95514529]
[1742675007221,0.33545469,2000.6,2000.5,39.37914529]
[1742675011029,0.33545469,2000.6,2000.5,36.04675]
[1742675011521,0.33545469,2000.6,2000.5,31.42275]
[1742675011719,0.33545469,2000.6,2000.5,36.04675]
[1742675014944,0.33545469,2000.6,2000.5,38.58164529]
[1742675015746,0.33545469,2000.6,2000.5,39.38014529]
[1742675016613,7.87241802,2001.4,2001.3,4.99675]
[1742675016614,1.16490273,2001.4,2001.3,4.99675]
[1742675019229,0.34100273,2001.4,2001.3,4.99675]
[1742675019694,0.34100273,2001.4,2001.3,5.04671001]
[1742675019994,0.34100273,2001.4,2001.3,5.04670947]
[1742675020672,0.34100273,2001.4,2001.3,4.99675]
[1742675021067,1.16490273,2001.4,2001.3,4.99675]
[1742675025886,1.16490273,2001.4,2001.1,31.41919]
[1742675026185,1.16490273,2001.4,2001.2,4.623]
[1742675029691,1.16490273,2001.4,2001.2,9.61997]
[1742675031259,1.16490273,2001.4,2001.3,4.99675]
[1742675031429,1.16490273,2001.4,2001.2,14.61685]
[1742675031641,1.16490273,2001.4,2001.2,9.61988]
[1742675033160,1.16490273,2001.4,2001.2,4.623]
[1742675033459,1.16490273,2001.4,2001.2,9.61996]
[1742675033653,0.34100273,2001.4,2001.3,4.99675]
[1742675034169,0.34100273,2001.4,2001.3,5.04671487]
[1742675034366,0.34100273,2001.4,2001.3,5.85911074]
[1742675038166,0.34100273,2001.4,2001.3,5.04671074]
[1742675040775,0.34100273,2001.4,2001.3,31.46271074]
[1742675040975,0.34100273,2001.4,2001.3,31.41275]
[1742675044076,0.34100273,2001.4,2001.3,34.41275]
[1742675044375,0.34100273,2001.4,2001.3,31.41275]
[1742675054985,0.34100273,2001.4,2001.3,4.99675]
[1742675061777,1.16650273,2001.4,2001.3,4.99675]
[1742675063790,0.34100273,2001.4,2001.3,4.99675]
[1742675065618,1.16650273,2001.4,2001.3,4.99675]
[1742675065811,3.7014527,2001.4,2001.3,9.61875]
[1742675066123,1.47897725,2001.4,2001.3,9.61875]
[1742675071127,4.01392722,2001.4,2001.3,4.622]
[1742675072318,1.47897725,2001.4,2001.3,4.622]
[1742675072528,4.01392722,2001.4,2001.3,4.622]
[1742675073525,4.01392722,2001.4,2001.2,31.41181]
[1742675073719,4.01392722,2001.4,2001.2,36.03381]
[1742675074342,4.01392722,2001.4,2001.2,9.61881]
[1742675077726,1.47897725,2001.4,2001.2,9.61881]
[1742675078316,1.47897725,2001.4,2001.2,14.61569]
[1742675078551,1.47897725,2001.4,2001.2,9.61881]
[1742675081852,1.47897725,2001.4,2001.2,14.61568]
[1742675082051,1.47897725,2001.4,2001.2,9.61881]
[1742675082555,1.47897725,2001.4,2001.2,14.61569]
[1742675082721,1.47897725,2001.4,2001.2,14.61565]
[1742675082917,1.47897725,2001.4,2001.2,9.61881]
[1742675084052,0.65347725,2001.4,2001.2,9.61881]
[1742675087253,0.65347725,2001.4,2001.3,4.99675]
[1742675090347,0.65347725,2001.4,2001.3,5.04671143]
[1742675090547,0.65347725,2001.4,2001.3,8.30559997]
[1742675091247,0.65347725,2001.4,2001.3,5.77065]
[1742675091445,0.65347725,2001.4,2001.3,8.30559997]
[1742675091883,0.65347725,2001.4,2001.3,5.77065]
[1742675093300,0.65347725,2001.4,2001.3,11.30559997]
[1742675094064,0.65347725,2001.4,2001.3,5.77065]
[1742675098288,0.65347725,2001.4,2001.3,32.18665]
[1742675101311,0.65347725,2001.4,2001.3,34.72159997]
[1742675102102,0.65347725,2001.4,2001.3,37.72159997]
[1742675102292,7.25e-06,2001.4,2001.3,37.72159997]
[1742675103289,7.25e-06,2001.4,2001.3,38.27159997]
[1742675111425,7.25e-06,2001.4,2001.3,38.65496197]
[1742675122444,7.25e-06,2001.4,2001.3,41.18991194]
[1742675122647,7.25e-06,2001.4,2001.3,46.45791194]
[1742675134660,7.25e-06,2001.4,2001.3,49.45791194]
[1742675143986,7.25e-06,2001.4,2001.3,41.388012]
[1742675144169,7.25e-06,2001.4,2001.3,47.76806197]
[1742675144369,7.25e-06,2001.4,2001.3,49.26880097]
[1742675160187,7.25e-06,2001.4,2001.3,52.56535094]
[1742675160945,7.25e-06,2001.8,2001.7,8.54575]
[1742675161088,7.25e-06,2001.8,2001.7,15.74963586]
[1742675161285,7.25e-06,2001.8,2001.7,20.96769997]
[1742675165756,7.25e-06,2001.8,2001.7,22.46807497]
[1742675171139,7.25e-06,2001.8,2001.7,23.29477497]
[1742675176591,4.99133,2003.5,2002.9,4.99276]
[1742675176879,2.53494997,2003.3,2003.0,9.98491]
[1742675177053,5.53494997,2003.3,2003.0,4.9924]
[1742675178254,5.53494997,2003.3,2003.0,4.99242]
[1742675179085,5.53494997,2003.3,2003.1,4.99223]
[1742675179086,3.0,2003.3,2003.1,4.99223]
[1742675179249,3.0,2003.3,2002.9,4.618]
[1742675179449,2.72884124,2003.4,2003.1,4.99208]
[1742675179665,0.7908,2003.3,2003.1,4.99208]
[1742675179880,3.32574997,2003.3,2003.1,4.99208]
[1742675180087,0.7908,2003.2,2003.1,4.99208]
[1742675207320,4.47686609,2003.2,2002.9,26.395]
[1742675207524,2.53494997,2003.0,2002.9,26.395]
[1742675207726,0.8273,2003.0,2002.9,26.395]
[1742675207933,3.36224997,2003.0,2002.9,26.395]
[1742675208229,0.8273,2003.0,2002.9,26.395]
[1742675208428,1.77784661,2003.0,2002.9,26.395]
[1742675208804,1.77784661,2003.0,2002.9,31.012]
[1742675213847,4.31279658,2003.0,2002.9,26.395]
[1742675214051,4.31279658,2003.0,2002.9,31.012]
[1742675217126,4.31279658,2003.0,2002.9,4.617]
[1742675219053,9.30530658,2003.0,2002.9,4.617]
[1742675219744,5.77585,2002.7,2002.6,26.395]
[1742675219945,8.31079997,2002.7,2002.6,26.395]
[1742675220520,4.99378,2002.5,2002.2,4.617]
[1742675220725,2.53494997,2002.3,2002.0,26.396]
[1742675220930,2.53494997,2002.3,2002.2,4.617]
[1742675225156,11.92020402,2002.3,2002.2,4.617]
[1742675225352,5.77735,2002.1,2002.0,26.396]
[1742675225546,11.31229997,2002.1,2002.0,26.396]
[1742675228377,6.31754997,2002.1,2002.0,26.396]
[1742675228782,11.31229997,2002.1,2002.0,26.396]
[1742675229083,13.00382037,2002.1,2002.0,26.396]
[1742675234155,13.00382037,2002.1,2001.8,4.618]
[1742675234355,8.00907037,2002.1,2001.8,9.61348]
[1742675234668,6.31754997,2002.1,2001.8,9.61336]
[1742675235049,11.31230997,2002.1,2001.8,4.618]
[1742675235985,2.53494997,2002.0,2001.8,4.618]
[1742675237200,7.53019997,2001.9,2001.6,4.99598]
[1742675237360,9.97152397,2001.9,2001.7,4.619]
[1742675237688,2.53494997,2001.8,2001.7,4.619]
[1742675239900,9.97152397,2001.9,2001.7,4.619]
[1742675240195,8.34079997,2001.9,2001.7,4.619]
[1742675243506,3.34554997,2001.9,2001.7,4.619]
[1742675244911,0.8106,2001.9,2001.7,4.619]
[1742675245909,7.53003997,2002.0,2001.7,4.619]
[1742675246078,3.804,2002.1,2001.8,4.99539]
[1742675246277,2.53494997,2002.0,2001.8,4.99539]
[1742675247412,2.53494997,2002.0,2001.7,10.40594]
[1742675247713,2.53494997,2001.8,2001.7,4.619]
[1742675248006,3.33894997,2001.9,2001.7,4.619]
[1742675253229,2.53494997,2001.8,2001.7,4.619]
[1742675255028,6.33894997,2001.9,2001.7,4.619]
[1742675255231,11.33420997,2001.9,2001.7,4.619]
[1742675256141,12.17522886,2001.9,2001.7,4.619]
[1742675257244,7.17996886,2001.9,2001.7,4.619]
[1742675257610,2.53494997,2002.0,2001.7,9.61466]
[1742675257811,3.0,2001.9,2001.7,9.61466]
[1742675266850,0.13938226,2001.8,2001.7,9.61466]
[1742675267522,0.13938226,2001.8,2001.7,4.619]
[1742675275454,0.13938226,2001.8,2001.7,9.61475]
[1742675277635,0.13938226,2001.8,2001.7,4.619]
[1742675279454,0.13938226,2001.8,2001.7,9.61475]
[1742675279651,0.13938226,2001.8,2001.7,4.619]
[1742675280038,0.13938226,2001.8,2001.7,9.61475]
[1742675280438,0.13938226,2001.8,2001.7,4.619]
[1742675286667,0.13938226,2001.8,2001.7,9.61475]
[1742675288968,0.13938226,2001.8,2001.7,4.619]
[1742675290275,3.74126645,2001.8,2001.7,4.619]
[1742675290463,9.56176645,2001.8,2001.7,4.619]
[1742675291187,4.56626645,2001.8,2001.7,4.619]
[1742675291386,2.03131648,2001.8,2001.7,4.619]
[1742675292041,4.56626645,2001.8,2001.7,4.619]
[1742675292488,9.56176645,2001.8,2001.7,4.619]
[1742675295301,4.56626645,2001.8,2001.7,4.619]
[1742675298095,2.03131648,2001.8,2001.7,4.619]
[1742675298246,0.13938226,2001.8,2001.7,4.619]
[1742675298688,0.13938226,2001.8,2001.7,9.61475]
[1742675298850,0.13938226,2001.8,2001.7,10.39155]
[1742675300303,0.13938226,2001.8,2001.7,12.92649997]
[1742675300484,2.26e-06,2001.8,2001.7,16.47649997]
[1742675302317,2.26e-06,2001.8,2001.7,16.94257284]
[1742675302914,2.26e-06,2001.8,2001.7,17.95168243]
[1742675303617,2.26e-06,2001.8,2001.7,18.33523862]
[1742675312408,2.26e-06,2001.8,2001.7,44.74323862]
[1742675326743,2.26e-06,2001.8,2001.7,46.24384662]
[1742675331765,2.26e-06,2001.8,2001.7,37.37954046]
[1742675332077,2.26e-06,2001.8,2001.7,41.99654046]
[1742675332582,2.26e-06,2001.8,2001.7,44.53149043]
[1742675333265,2.26e-06,2001.8,2001.7,40.03088243]
[1742675337238,2.26e-06,2001.8,2001.7,32.87893246]
[1742675337473,2.26e-06,2001.8,2001.7,37.49593246]
[1742675337851,2.26e-06,2001.8,2001.7,36.48682287]
[1742675349505,0.75180226,2001.8,2001.7,36.48682287]
[1742675354614,0.75180226,2001.8,2001.7,10.07882287]
[1742675356308,1.08047748,2001.8,2001.7,10.07882287]
[1742675356512,1.08047748,2001.8,2001.7,5.08307287]
[1742675356718,3.61542745,2001.8,2001.7,0.46607287]
[1742675357012,11.7272985,2001.8,2001.7,0.46607287]
[1742675357981,0.7653,2001.7,2001.6,26.409]
[1742675358180,4.2462073,2001.7,2001.6,26.409]
[1742675358399,5.0115073,2001.7,2001.6,26.409]
[1742675361879,10.0072573,2001.7,2001.6,26.409]
[1742675367729,13.0072573,2001.7,2001.6,26.409]
[1742675369327,0.8205,2001.4,2001.2,9.61499]
[1742675369530,0.8205,2001.4,2001.2,9.61483]
[1742675369822,0.8205,2001.4,2001.3,4.99675]
[1742675370624,3.35544997,2001.4,2001.3,4.99675]
[1742675370931,0.8205,2001.4,2001.3,4.99675]
[1742675374817,4.37973055,2001.6,2001.4,4.99641]
[1742675375195,1.84478058,2001.6,2001.4,4.99641]
[1742675375396,3.35544997,2001.7,2001.4,4.99641]
[1742675375696,2.53494997,2001.6,2001.4,4.99641]
[1742675376228,5.53494997,2001.6,2001.3,5.46250483]
[1742675376599,5.53494997,2001.6,2001.3,10.45907483]
[1742675376926,3.0,2001.6,2001.4,4.99649]
[1742675377091,3.35544997,2001.7,2001.4,4.99649]
[1742675377291,0.8205,2001.7,2001.5,4.99622]
[1742675384034,0.8205,2001.7,2001.4,5.46274513]
[1742675384450,3.35544997,2001.7,2001.4,5.46274513]
[1742675384949,3.35544997,2001.7,2001.5,0.46631513]
[1742675386317,5.07210476,2001.7,2001.4,4.99643]
[1742675388657,5.07210476,2001.7,2001.5,0.46694954]
[1742675389949,5.07210476,2001.7,2001.4,4.99643]
[1742675390156,3.35544997,2001.7,2001.4,4.99643]
[1742675390348,0.8205,2001.7,2001.4,9.99275]
[1742675390512,0.8205,2001.7,2001.4,4.99632]
[1742675391250,0.8205,2001.7,2001.4,9.99265]
[1742675391551,0.8205,2001.7,2001.5,4.99621]
[1742675393264,0.8205,2001.7,2001.4,9.9927]
[1742675393564,0.8205,2001.7,2001.5,4.99623]
[1742675397169,0.8205,2001.7,2001.4,4.99643]
[1742675397558,0.8205,2001.7,2001.6,0.46716151]
[1742675397559,5.81625,2001.7,2001.6,0.46716151]
[1742675397759,2.49967685,2001.7,2001.6,0.46716151]
[1742675399180,2.49967685,2001.7,2001.4,4.99645]
[1742675399338,0.8205,2001.7,2001.4,9.99286]
[1742675399666,0.8205,2001.7,2001.5,4.99624]
[1742675400774,0.8205,2001.7,2001.4,4.99641]
[1742675401376,0.8205,2001.7,2001.5,0.46736652]
[1742675402582,0.8205,2001.7,2001.6,0.46736652]
[1742675402744,2.49962785,2001.7,2001.6,0.46736652]
[1742675407396,1.67912785,2001.7,2001.6,0.46736652]
[1742675407691,7.9755185,2001.8,2001.7,4.99575]
[1742675407692,3.44504853,2001.8,2001.7,4.99575]
[1742675408011,0.44504853,2001.8,2001.7,4.99575]
[1742675408289,0.11637331,2001.8,2001.7,8.78606649]
[1742675408490,0.11637331,2001.8,2001.7,8.8360206]
[1742675408798,0.11637331,2001.8,2001.7,8.78606649]
[1742675409296,0.11637331,2001.8,2001.7,11.78606649]
[1742675409857,0.11637331,2001.8,2001.7,12.33606649]
[1742675410071,3.31e-06,2001.8,2001.7,12.33606649]
[1742675410894,3.31e-06,2001.8,2001.7,12.71663448]
[1742675413699,3.31e-06,2001.8,2001.7,13.71293946]
[1742675416276,3.31e-06,2001.8,2001.7,13.24557294]
[1742675416613,3.31e-06,2001.8,2001.7,13.70962018]
[1742675417817,0.7865,2002.6,2002.5,4.99375]
[1742675418044,0.7865,2002.6,2002.5,9.60975]
[1742675422571,0.88570348,2002.6,2002.5,9.60975]
[1742675424124,0.7865,2002.5,2002.3,26.407]
[1742675424328,2.53494997,2002.4,2002.3,26.407]
[1742675424626,2.63387646,2002.4,2002.3,26.407]
[1742675424802,3.42037646,2002.4,2002.3,26.407]
[1742675426548,0.88542649,2002.4,2002.3,31.40125]
[1742675427543,0.09892649,2002.4,2002.3,31.40125]
[1742675427758,0.8059,2002.6,2002.4,4.99377]
[1742675427911,0.8059,2002.6,2002.5,4.99375]
[1742675431469,3.0,2002.7,2002.5,4.99375]
[1742675432527,0.09880541,2002.6,2002.5,4.99375]
[1742675436734,5.79894,2002.8,2002.5,4.99375]
[1742675437031,7.60013622,2002.8,2002.5,4.99375]
[1742675437233,0.098868,2002.7,2002.5,4.99375]
[1742675440660,0.098868,2002.7,2002.4,4.99397]
[1742675441402,0.098868,2002.7,2002.5,0.46663973]
[1742675442104,0.098868,2002.7,2002.5,5.46020973]
[1742675442469,0.098868,2002.7,2002.6,4.9935]
[1742675443508,0.098868,2002.7,2002.5,4.9937]
[1742675447712,0.098868,2002.7,2002.4,4.99398]
[1742675447713,0.098868,2002.7,2002.4,9.98781]
[1742675448520,0.098868,2002.7,2002.5,0.46674445]
[1742675449633,0.098868,2002.7,2002.4,9.98769]
[1742675450737,0.098868,2002.7,2002.5,4.99375]
[1742675451139,2.53249992,2002.6,2002.5,4.99375]
[1742675451440,0.098868,2002.7,2002.6,4.9935]
[1742675451637,0.8104,2003.1,2002.8,4.99289]
[1742675451950,0.8104,2003.1,2003.0,4.99251]
[1742675452110,3.8104,2003.1,2003.0,4.99251]
[1742675452306,3.8104,2003.1,2002.9,4.99267]
[1742675452507,3.34289992,2003.1,2002.9,4.99267]
[1742675453093,0.8104,2003.1,2002.9,4.99267]
[1742675453518,0.8104,2003.1,2002.8,4.9929]
[1742675453719,0.8104,2003.1,2002.9,9.98521]
[1742675454759,7.21883724,2003.2,2003.0,4.99251]
[1742675454933,4.99186,2003.3,2003.0,4.99249]
[1742675454934,3.7663,2003.3,2003.0,4.99249]
[1742675456355,3.7663,2003.3,2003.0,9.98482]
[1742675456555,3.7663,2003.3,2003.0,14.59982]
[1742675456918,3.7663,2003.3,2003.0,9.60733]
[1742675462061,8.75808,2003.3,2003.0,9.60733]
[1742675462262,4.21883724,2003.2,2002.7,31.39401]
[1742675462566,5.09377706,2003.1,2002.8,4.615]
[1742675462925,0.774,2003.0,2002.8,4.615]
[1742675463138,0.10118301,2002.9,2002.8,4.615]
[1742675463556,0.10118301,2002.9,2002.8,9.608]
[1742675464396,0.10118301,2002.9,2002.8,4.615]
[1742675464550,0.10118301,2002.9,2002.8,9.608]
[1742675465896,5.68080531,2002.9,2002.7,26.401]
[1742675466200,12.98583724,2002.8,2002.5,4.615]
[1742675466351,17.97901724,2002.8,2002.5,4.615]
[1742675466551,5.09418905,2002.7,2002.5,4.615]
[1742675466784,5.09418905,2002.7,2002.4,4.615]
[1742675467095,5.09418905,2002.7,2002.4,5.08053845]
[1742675467858,4.99283724,2002.6,2002.4,5.08053845]
[1742675468161,12.31290714,2002.5,2002.4,0.46553845]
[1742675468370,4.994,2002.4,2002.3,0.46553845]
[1742675468588,9.21283724,2002.4,2002.3,0.46553845]
[1742675468794,12.31208061,2002.4,2002.3,0.46553845]
[1742675468975,15.32493393,2002.4,2002.3,0.46553845]
[1742675469786,5.7685,2002.2,2002.1,26.399]
[1742675469991,12.98733724,2002.2,2002.1,26.399]
[1742675470289,13.08630354,2002.2,2002.1,26.399]
[1742675470506,8.8674663,2002.2,2002.1,26.399]
[1742675472566,14.62947651,2002.2,2002.1,26.399]
[1742675474286,14.62947651,2002.2,2001.9,4.615]
[1742675474287,4.99475,2002.1,2001.9,4.615]
[1742675474674,0.09642621,2002.0,2001.9,4.615]
[1742675475592,3.774,2002.2,2001.9,9.61012]
[1742675475837,0.09642621,2002.0,2001.9,10.44082]
[1742675476341,3.0,2002.2,2001.9,10.44082]
[1742675476514,0.09656474,2002.1,2001.9,10.44082]
[1742675476832,0.09656474,2002.1,2002.0,4.995]
[1742675477915,3.0,2002.4,2002.1,4.9946]